Publisher Label,Publisher URI,"Payment Date","Organisational Unit","Beneficiary Name","Purpose","Amount (£)","Irrecoverable VAT Amount (£)","Merchant Category Code"
"Wolverhampton City Council","http://opendatacommunities.org/id/metropolitan-district-council/wolverhampton","01/09/2016","Governance","ADARE LTD","Comms - Postage","1537.59","0.00","4812"
"Wolverhampton City Council","http://opendatacommunities.org/id/metropolitan-district-council/wolverhampton","15/07/2016","Pension Operations","Barnett Waddingham LLP","Actuarial Fees","1110.00","0.00","6012"
"Wolverhampton City Council","http://opendatacommunities.org/id/metropolitan-district-council/wolverhampton","08/09/2016","Pension Operations","Barnett Waddingham LLP","Actuarial Fees","1900.00","0.00","6012"
"Wolverhampton City Council","http://opendatacommunities.org/id/metropolitan-district-council/wolverhampton","11/10/2016","Pension Operations","Barnett Waddingham LLP","Actuarial Fees","2000.00","0.00","6012"
"Wolverhampton City Council","http://opendatacommunities.org/id/metropolitan-district-council/wolverhampton","20/09/2016","Pension Operations","Barnett Waddingham LLP","Actuarial Fees","2002.50","0.00","6012"
"Wolverhampton City Council","http://opendatacommunities.org/id/metropolitan-district-council/wolverhampton","20/09/2016","Pension Operations","Barnett Waddingham LLP","Actuarial Fees","2470.00","0.00","6012"
"Wolverhampton City Council","http://opendatacommunities.org/id/metropolitan-district-council/wolverhampton","20/09/2016","Pension Operations","Barnett Waddingham LLP","Actuarial Fees","3265.00","0.00","6012"
"Wolverhampton City Council","http://opendatacommunities.org/id/metropolitan-district-council/wolverhampton","11/10/2016","Pension Operations","Barnett Waddingham LLP","Actuarial Fees","3830.00","0.00","6012"
"Wolverhampton City Council","http://opendatacommunities.org/id/metropolitan-district-council/wolverhampton","14/07/2016","Pension Operations","Barnett Waddingham LLP","Actuarial Fees","3862.50","0.00","6012"
"Wolverhampton City Council","http://opendatacommunities.org/id/metropolitan-district-council/wolverhampton","08/09/2016","Pension Operations","Barnett Waddingham LLP","Actuarial Fees","4050.00","0.00","6012"
"Wolverhampton City Council","http://opendatacommunities.org/id/metropolitan-district-council/wolverhampton","09/09/2016","Pension Operations","Barnett Waddingham LLP","Actuarial Fees","4895.00","0.00","6012"
"Wolverhampton City Council","http://opendatacommunities.org/id/metropolitan-district-council/wolverhampton","01/09/2016","Pension Operations","Barnett Waddingham LLP","Actuarial Fees","9285.00","0.00","6012"
"Wolverhampton City Council","http://opendatacommunities.org/id/metropolitan-district-council/wolverhampton","11/10/2016","Pension Operations","Barnett Waddingham LLP","Actuarial Fees","12657.50","0.00","6012"
"Wolverhampton City Council","http://opendatacommunities.org/id/metropolitan-district-council/wolverhampton","15/07/2016","Pension Operations","BIRMINGHAM CITY COUNCIL","Comms - Postage","3632.65","0.00","9399"
"Wolverhampton City Council","http://opendatacommunities.org/id/metropolitan-district-council/wolverhampton","01/09/2016","Pension Operations","CIVICA UK LIMITED","Computing - Maint Agreements","2707.50","0.00","5045"
"Wolverhampton City Council","http://opendatacommunities.org/id/metropolitan-district-council/wolverhampton","21/09/2016","Pension Operations","CIVICA UK LIMITED","Computing - Maint Agreements","4940.00","0.00","5045"
"Wolverhampton City Council","http://opendatacommunities.org/id/metropolitan-district-council/wolverhampton","14/07/2016","Financial Services","Deloitte LLP","Services - Professional Fees","70310.42","0.00","8999"
"Wolverhampton City Council","http://opendatacommunities.org/id/metropolitan-district-council/wolverhampton","14/07/2016","Governance","DTZ DTL LTD CLIENT AC:COMMONRECEIPTS","Rent","48839.28","0.00","7523"
"Wolverhampton City Council","http://opendatacommunities.org/id/metropolitan-district-council/wolverhampton","19/10/2016","Financial Services","Duncan Cunningham Icon Reporting Services","Services - Consultants","1980.89","0.00","5045"
"Wolverhampton City Council","http://opendatacommunities.org/id/metropolitan-district-council/wolverhampton","01/09/2016","Pension Operations","eFinancial Careers Ltd","Staff Advertising Costs","1500.00","0.00","7311"
"Wolverhampton City Council","http://opendatacommunities.org/id/metropolitan-district-council/wolverhampton","18/08/2016","Governance","EMAP PUBLISHING LTD","Conference Expenses","699.00","0.00","5192"
"Wolverhampton City Council","http://opendatacommunities.org/id/metropolitan-district-council/wolverhampton","01/09/2016","Governance","Eversheds LLP","Training Expenses","500.00","0.00","8111"
"Wolverhampton City Council","http://opendatacommunities.org/id/metropolitan-district-council/wolverhampton","01/09/2016","Governance","Eversheds LLP","Training Expenses","2500.00","0.00","8111"
"Wolverhampton City Council","http://opendatacommunities.org/id/metropolitan-district-council/wolverhampton","29/07/2016","Pension Operations","Genus","Computing - Maint Agreements","6017.00","0.00","5045"
"Wolverhampton City Council","http://opendatacommunities.org/id/metropolitan-district-council/wolverhampton","15/07/2016","Governance","Goss Interactive Ltd","Training Expenses","840.00","0.00","8299"
"Wolverhampton City Council","http://opendatacommunities.org/id/metropolitan-district-council/wolverhampton","21/07/2016","Financial Services","Grant Thornton UK LLP","Services - Professional Fees","12154.00","0.00","8931"
"Wolverhampton City Council","http://opendatacommunities.org/id/metropolitan-district-council/wolverhampton","17/10/2016","Governance","Home Learning College","Training Expenses","1995.83","0.00","8299"
"Wolverhampton City Council","http://opendatacommunities.org/id/metropolitan-district-council/wolverhampton","19/07/2016","Investment - Revenue","HSBC BANK PLC/HSBC SECURITY SERVICES","Services - Professional Fees","2731.00","0.00","8999"
"Wolverhampton City Council","http://opendatacommunities.org/id/metropolitan-district-council/wolverhampton","23/09/2016","Financial Services","HYMANS ROBERTSON LLP","Services - Professional Fees","10141.00","0.00","6012"
"Wolverhampton City Council","http://opendatacommunities.org/id/metropolitan-district-council/wolverhampton","03/10/2016","Governance","Kaizen Consultants","Stationery","1060.00","0.00","2741"
"Wolverhampton City Council","http://opendatacommunities.org/id/metropolitan-district-council/wolverhampton","13/09/2016","Pension Operations","KNOWLEDGE ACADEMY","Training Expenses","2136.00","0.00","8299"
"Wolverhampton City Council","http://opendatacommunities.org/id/metropolitan-district-council/wolverhampton","04/10/2016","Governance","KONICA MINOLTA BUS.SOLUTIONS(UK)LTD.","Printing","1898.94","0.00","2741"
"Wolverhampton City Council","http://opendatacommunities.org/id/metropolitan-district-council/wolverhampton","18/07/2016","Governance","KRCS GROUP PLC","Computing - Purchase of Hardware","588.96","0.00","5072"
"Wolverhampton City Council","http://opendatacommunities.org/id/metropolitan-district-council/wolverhampton","25/07/2016","Pension Operations","Miles Associates","Agency Staff","5600.00","0.00","4900"
"Wolverhampton City Council","http://opendatacommunities.org/id/metropolitan-district-council/wolverhampton","03/10/2016","Pension Operations","NEOPOST LIMITED","Comms - Postage","897.75","0.00","5111"
"Wolverhampton City Council","http://opendatacommunities.org/id/metropolitan-district-council/wolverhampton","04/10/2016","Financial Services","Norfolk County Council","Services - Professional Fees","10000.00","0.00","8299"
"Wolverhampton City Council","http://opendatacommunities.org/id/metropolitan-district-council/wolverhampton","05/08/2016","Investments Fund Account","Oakland & Co","Services - Professional Fees","500.00","0.00","8111"
"Wolverhampton City Council","http://opendatacommunities.org/id/metropolitan-district-council/wolverhampton","26/07/2016","Pension Operations","Pension Management Institute","Training Expenses","1535.00","0.00","8299"
"Wolverhampton City Council","http://opendatacommunities.org/id/metropolitan-district-council/wolverhampton","01/09/2016","Investment - Revenue","Pinsent Masons","Services - Professional Fees","6345.00","0.00","8111"
"Wolverhampton City Council","http://opendatacommunities.org/id/metropolitan-district-council/wolverhampton","01/09/2016","Investment - Revenue","Portfolio Evalutaion Limited","Services - Professional Fees","12112.50","0.00","8999"
"Wolverhampton City Council","http://opendatacommunities.org/id/metropolitan-district-council/wolverhampton","01/09/2016","Financial Services","PRICE WATERHOUSE COOPERS","Services - Professional Fees","4000.00","0.00","8931"
"Wolverhampton City Council","http://opendatacommunities.org/id/metropolitan-district-council/wolverhampton","22/07/2016","Financial Services","PRICE WATERHOUSE COOPERS","Services - Professional Fees","25406.00","0.00","8931"
"Wolverhampton City Council","http://opendatacommunities.org/id/metropolitan-district-council/wolverhampton","01/09/2016","Pension Operations","QAS LIMITED T/A EXPERIAN QAS","Computing - Maint Agreements","2050.00","0.00","5045"
"Wolverhampton City Council","http://opendatacommunities.org/id/metropolitan-district-council/wolverhampton","01/09/2016","Pension Operations","QAS LIMITED T/A EXPERIAN QAS","Computing - Maint Agreements","2280.27","0.00","5045"
"Wolverhampton City Council","http://opendatacommunities.org/id/metropolitan-district-council/wolverhampton","01/09/2016","Property and legal fees","QUINN EMANUEL TRIAL LAWYERS","Services - Professional Fees","1920.00","0.00","8999"
"Wolverhampton City Council","http://opendatacommunities.org/id/metropolitan-district-council/wolverhampton","03/10/2016","Governance","ROYAL MAIL GROUP PLC","Comms - Postage","515.59","0.00","9402"
"Wolverhampton City Council","http://opendatacommunities.org/id/metropolitan-district-council/wolverhampton","15/07/2016","Governance","ROYAL MAIL GROUP PLC","Comms - Postage","533.91","0.00","9402"
"Wolverhampton City Council","http://opendatacommunities.org/id/metropolitan-district-council/wolverhampton","03/10/2016","Governance","ROYAL MAIL GROUP PLC","Comms - Postage","658.35","0.00","9402"
"Wolverhampton City Council","http://opendatacommunities.org/id/metropolitan-district-council/wolverhampton","30/09/2016","Financial Services","SF Recruitment Ltd","Agency Staff","518.63","0.00","7361"
"Wolverhampton City Council","http://opendatacommunities.org/id/metropolitan-district-council/wolverhampton","03/10/2016","Governance","SGS UNITED KINGDOM LTD","Services - Professional Fees","1153.80","0.00","8999"
"Wolverhampton City Council","http://opendatacommunities.org/id/metropolitan-district-council/wolverhampton","20/07/2016","Executive","SWIFT BUSINESS SOLUTIONS LTD","Equipment - Purchase","1203.00","0.00","7361"
"Wolverhampton City Council","http://opendatacommunities.org/id/metropolitan-district-council/wolverhampton","30/09/2016","Investment - Revenue","Tedmoor Consultancy Ltd","Investment Management Expenses","1177.00","0.00","8999"
"Wolverhampton City Council","http://opendatacommunities.org/id/metropolitan-district-council/wolverhampton","17/08/2016","Investments Fund Account","The Financial Times Limited","Subscriptions","572.00","0.00","5192"
"Wolverhampton City Council","http://opendatacommunities.org/id/metropolitan-district-council/wolverhampton","17/08/2016","Investments Fund Account","The Financial Times Limited","Subscriptions","572.00","0.00","5192"
"Wolverhampton City Council","http://opendatacommunities.org/id/metropolitan-district-council/wolverhampton","17/08/2016","Investments Fund Account","The Financial Times Limited","Subscriptions","572.00","0.00","5192"
"Wolverhampton City Council","http://opendatacommunities.org/id/metropolitan-district-council/wolverhampton","17/08/2016","Investments Fund Account","The Financial Times Limited","Subscriptions","572.00","0.00","5192"
"Wolverhampton City Council","http://opendatacommunities.org/id/metropolitan-district-council/wolverhampton","01/09/2016","Pension Operations","UK MAIL LTD/BUSINESSPOST INTERNATNL.","Comms - Postage","575.74","0.00","4215"
"Wolverhampton City Council","http://opendatacommunities.org/id/metropolitan-district-council/wolverhampton","01/09/2016","Governance","Ultimate Training Centre","Training Expenses","620.00","0.00","8299"
"Wolverhampton City Council","http://opendatacommunities.org/id/metropolitan-district-council/wolverhampton","01/09/2016","Pension Operations","Yoo","Agency Staff","2589.33","0.00","7361"
"Wolverhampton City Council","http://opendatacommunities.org/id/metropolitan-district-council/wolverhampton","03/08/2016","Pension Operations","Yoo","Agency Staff","2742.66","0.00","7361"
"Wolverhampton City Council","http://opendatacommunities.org/id/metropolitan-district-council/wolverhampton","15/08/2016","Pension Operations","Yoo","Agency Staff","2809.41","0.00","8999"
"Wolverhampton City Council","http://opendatacommunities.org/id/metropolitan-district-council/wolverhampton","03/08/2016","Pension Operations","Yoo","Agency Staff","2812.17","0.00","7361"
"Wolverhampton City Council","http://opendatacommunities.org/id/metropolitan-district-council/wolverhampton","03/08/2016","Pension Operations","Yoo","Agency Staff","3173.31","0.00","7361"
"Wolverhampton City Council","http://opendatacommunities.org/id/metropolitan-district-council/wolverhampton","20/09/2016","Pension Operations","Yoo","Agency Staff","3563.89","0.00","7361"
"Wolverhampton City Council","http://opendatacommunities.org/id/metropolitan-district-council/wolverhampton","03/08/2016","Pension Operations","Yoo","Agency Staff","3632.97","0.00","7361"
"Wolverhampton City Council","http://opendatacommunities.org/id/metropolitan-district-council/wolverhampton","04/10/2016","Pension Operations","Yoo","Agency Staff","3994.28","0.00","7361"
"Wolverhampton City Council","http://opendatacommunities.org/id/metropolitan-district-council/wolverhampton","03/08/2016","Pension Operations","Yoo","Agency Staff","4340.81","0.00","7311"
